fUSD/lending_fUSD_20251127
["ID","MTS","AMOUNT","RATE_DAILY","PERIOD"]
[394977574,1764247580256,-4713.88120158,0.00014735,2]
[394977575,1764247580281,-572.24759684,0.00014735,2]
[394977576,1764247583352,-628.05921987,0.00014735,2]
[394977600,1764247631879,-411.28167679,0.00014735,2]
[394977602,1764247635068,-171.01052842,0.00014735,2]
[394977603,1764247636963,-500.0,0.00014735,2]
[394977604,1764247640793,-302.0,0.00014735,2]
[394977605,1764247642806,-212.0,0.00014735,2]
[394977606,1764247645400,-266.787461,0.00014735,2]
[394977608,1764247647858,-288.37539985,0.00014735,2]
[394977609,1764247649292,-300.0,0.00014735,2]
[394977610,1764247650830,-300.0,0.00014735,2]
[394977611,1764247653352,-229.82213394,0.00014735,2]
[394977612,1764247653375,-81.62746977,0.00014735,2]
[394977613,1764247655734,-153.56133023,0.00014735,2]
[394977615,1764247655756,-146.43866977,0.00014735,2]
[394977616,1764247657248,-48.56133023,0.00014735,2]
[394977617,1764247657272,-158.49727208,0.00014735,2]
[394977618,1764247657296,-92.94139786,0.00014735,2]
[394977619,1764247659873,-200.0,0.00014735,2]
[394977620,1764247663194,-177.98947158,0.00014735,2]
[394977621,1764247665143,-302.0,0.00014735,2]
[394977622,1764247666707,-588.71832321,0.00014735,2]
[394977623,1764247669330,-245.70581276,0.00014735,2]
[394977625,1764247670783,-172.85401695,0.00014735,2]
[394977655,1764247692461,-178.93494496,0.00014735,2]
[394977663,1764247694593,-435.78500757,0.00014735,2]
[394977670,1764247696475,-300.0,0.00014735,2]
[394977676,1764247697928,-174.22229,0.00014735,2]
[394977680,1764247698725,171.91974677,0.00014635,2]
[394977683,1764247699995,-426.11966787,0.00014735,2]
[394977684,1764247702007,-354.16721243,0.00014735,2]
[394977685,1764247703569,-215.43286335,0.00014735,2]
[394977687,1764247705087,-300.0,0.00014735,2]
[394977688,1764247709849,-211.0,0.00014735,2]
[394977689,1764247711530,-200.0,0.00014735,2]
[394977690,1764247712988,-258.25636544,0.00014734,2]
[394977691,1764247713010,-219.81610823,0.00014734,2]
[394977692,1764247715990,-215.7131197,0.00014734,2]
[394977693,1764247719061,168.0,0.00014465,2]
[394977694,1764247719567,-64.47077207,0.00014734,2]
[394977695,1764247719591,-126.64195368,0.00014734,2]
[394977711,1764247764410,158.49727208,0.00014635,2]
[394977715,1764247790529,-300.0,0.00014733,2]
[394977716,1764247790564,-384.83481386,0.00014734,2]
[394977717,1764247790594,-311.26064428,0.00014734,2]
[394977718,1764247790624,-177.75326938,0.00014734,2]
[394977719,1764247790653,-175.22881925,0.00014734,2]
[394977720,1764247790683,-186.51178514,0.00014734,2]
[394977721,1764247790716,-500.0,0.00014734,2]
[394977722,1764247790744,-156.21900973,0.00014734,2]
[394977723,1764247790776,-213.08858192,0.00014734,2]
[394977724,1764247790809,-500.0,0.00014734,2]
[394977725,1764247790841,-500.0,0.00014734,2]
[394977726,1764247790874,-500.0,0.00014734,2]
[394977728,1764247801389,300.0,0.00014734,2]
[394977729,1764247801501,1200.0,0.00014734,2]
[394977735,1764247832140,-2599.20868858,0.00014735,2]
[394977736,1764247832249,-3317.75206066,0.00014735,2]
[394977737,1764247832304,-8785.535129,0.00014735,2]
[394977767,1764247836653,690.21615288,0.00014589,2]
[394977768,1764247836676,1309.78384712,0.00014589,2]
[394977781,1764247838342,-742501.84213558,0.00014735,2]
[394977782,1764247838352,-250.0,0.00014735,2]
[394977783,1764247838362,-94.10414668,0.00014735,2]
[394977784,1764247838373,-1600.0,0.0001478,2]
[394977785,1764247838384,-208.72064901,0.00014826,2]
[394977786,1764247838393,-500.0,0.00014826,2]
[394977788,1764247838402,-500.0,0.00014826,2]
[394977789,1764247838411,-500.0,0.00014826,2]
[394977790,1764247838422,-500.0,0.00014826,2]
[394977791,1764247838431,-500.0,0.00014826,2]
[394977792,1764247838441,-500.0,0.00014826,2]
[394977793,1764247838450,-500.0,0.00014826,2]
[394977794,1764247838462,-500.0,0.00014826,2]
[394977795,1764247838471,-500.0,0.00014826,2]
[394977796,1764247838481,-1230.22,0.00014826,2]
[394977797,1764247838491,-150.0,0.00014834,2]
[394977798,1764247838500,-33379.5876,0.00014835,2]
[394977800,1764247838509,-1000.0,0.00014835,2]
[394977801,1764247838519,-600.0,0.00014835,2]
[394977804,1764247838533,-500.0,0.00014873,2]
[394977806,1764247838543,-19641.0,0.00014898,2]
[394977808,1764247838552,-16943.10490576,0.00014942,2]
[394977809,1764247838562,-18425.5501118,0.00014943,2]
[394977810,1764247838572,-168.0,0.00014989,2]
[394977811,1764247838582,-20631.03718268,0.00015087,2]
[394977812,1764247838592,-1874.31316896,0.00015087,2]
[394977813,1764247838602,-151.0,0.00015087,2]
[394977814,1764247838611,-151.0,0.00015087,2]
[394977815,1764247838621,-151.0,0.00015087,2]
[394977816,1764247838630,-151.0,0.00015087,2]
[394977817,1764247838640,-1230.22,0.000151,2]
[394977818,1764247838650,-166.67,0.00015185,2]
[394977819,1764247838660,-150.0,0.00015288,2]
[394977820,1764247838670,-150.0,0.00015288,2]
[394977821,1764247838679,-150.0,0.00015288,2]
[394977822,1764247838689,-150.0,0.00015288,2]
[394977823,1764247838698,-150.0,0.00015288,2]
[394977824,1764247838708,-150.0,0.00015288,2]
[394977825,1764247838717,-1230.22,0.00015374,2]
[394977826,1764247838727,-337.09526351,0.00015408,2]
[394977827,1764247838736,-1000.0,0.00015421,2]
[394977828,1764247838746,-151.0,0.00015438,2]
[394977829,1764247838755,-151.0,0.00015438,2]
[394977830,1764247838765,-20631.03718268,0.00015438,2]
[394977831,1764247838774,-1874.31316896,0.00015438,2]
[394977832,1764247838783,-150.0,0.00015458,2]
[394977833,1764247838792,-418.70614657,0.00015475,2]
[394977834,1764247838802,-150.0,0.00015476,2]
[394977835,1764247838811,-168.0,0.00015491,2]
[394977836,1764247838820,-500.0,0.00015575,2]
[394977837,1764247838830,-500.0,0.00015575,2]
[394977838,1764247838840,-150.0,0.00015627,2]
[394977839,1764247838849,-150.0,0.00015627,2]
[394977840,1764247838858,-150.0,0.00015627,2]
[394977841,1764247838868,-1230.22,0.00015648,2]
[394977842,1764247838877,-1732.55050065,0.00015663,2]
[394977843,1764247838886,-150.0,0.00015665,2]
[394977844,1764247838895,-432.0,0.00015677,2]
[394977845,1764247838905,-151.0,0.00015698,2]
[394977846,1764247838918,-151.0,0.00015698,2]
[394977847,1764247838927,-298.359507,0.00015698,2]
[394977848,1764247838937,-1321.0,0.00015698,2]
[394977849,1764247838946,-610.0,0.00015698,2]
[394977850,1764247838955,-1602.0,0.00015698,2]
[394977851,1764247838965,-823.0,0.00015698,2]
[394977852,1764247838974,-1257.0,0.00015698,2]
[394977853,1764247838983,-660.0,0.00015698,2]
[394977854,1764247838993,-562.0,0.00015698,2]
[394977855,1764247839002,-2717.0,0.00015698,2]
[394977856,1764247839011,-6503.0,0.00015698,2]
[394977857,1764247839020,-204.0,0.00015709,2]
[394977858,1764247839030,-150.0,0.00015712,2]
[394977859,1764247839040,-201.0785,0.0001575,2]
[394977860,1764247839049,-210.9868427,0.00015774,2]
[394977861,1764247839058,-20631.03718268,0.0001579,2]
[394977862,1764247839067,-1874.31316896,0.0001579,2]
[394977863,1764247839076,-150.0,0.0001579,2]
[394977864,1764247839086,-150.0,0.0001579,2]
[394977865,1764247839095,-150.0,0.0001579,2]
[394977866,1764247839105,-299.4528281,0.0001579,2]
[394977867,1764247839114,-150.0,0.0001579,2]
[394977868,1764247839123,-150.0,0.0001579,2]
[394977869,1764247839132,-4302.0747041,0.00015797,2]
[394977870,1764247839141,-150.0,0.00015797,2]
[394977871,1764247839151,-168.0,0.00015808,2]
[394977872,1764247839160,-29109.9475647,0.00015808,2]
[394977873,1764247839169,-151.0,0.00015808,2]
[394977874,1764247839179,-151.0,0.00015808,2]
[394977875,1764247839188,-151.0,0.00015808,2]
[394977876,1764247839197,-500.0,0.0001582,2]
[394977877,1764247839206,-150.0,0.0001582,2]
[394977878,1764247839216,-512.0,0.0001582,2]
[394977879,1764247839225,-150.0,0.0001582,2]
[394977880,1764247839235,-150.0,0.0001582,2]
[394977881,1764247839244,-150.0,0.0001582,2]
[394977882,1764247839254,-152.75787537,0.0001582,2]
[394977883,1764247839264,-270.96815069,0.00015853,2]
[394977884,1764247839273,-150.0,0.00015854,2]
[394977885,1764247839282,-4290.0,0.00015872,2]
[394977886,1764247839291,-500.0,0.00015873,2]
[394977887,1764247839303,-502.15984463,0.00015873,2]
[394977888,1764247839312,-500.0,0.00015873,2]
[394977889,1764247839321,-201.07851,0.0001588,2]
[394977890,1764247839330,-167.77619749,0.000159,2]
[394977891,1764247839340,-431.13453225,0.000159,2]
[394977892,1764247839349,-2175.13432188,0.000159,2]
[394977893,1764247839358,-151.0,0.0001591,2]
[394977894,1764247839367,-16499.26144983,0.0001591,2]
[394977895,1764247839380,-20000.0,0.0001592,2]
[394977896,1764247839390,-151.0,0.0001592,2]
[394977897,1764247839399,-151.0,0.0001592,2]
[394977898,1764247839408,-1230.22,0.00015922,2]
[394977899,1764247839419,-150.0,0.00015927,2]
[394977900,1764247839428,-150.0,0.00015927,2]
[394977901,1764247839437,-500.0,0.00015957,2]
[394977902,1764247839446,-512.0,0.00015957,2]
[394977903,1764247839456,-150.0,0.00015957,2]
[394977904,1764247839465,-255.0,0.00015961,2]
[394977905,1764247839475,-150.0,0.00015967,2]
[394977906,1764247839484,-150.0,0.00015967,2]
[394977907,1764247839493,-150.0,0.00015967,2]
[394977908,1764247839502,-1508.28181366,0.00015968,2]
[394977909,1764247839511,-500.98676918,0.00015973,2]
[394977910,1764247839520,-500.0,0.00015973,2]
[394977911,1764247839529,-500.0,0.00015973,2]
[394977912,1764247839539,-504.9809457,0.00015973,2]
[394977913,1764247839548,-500.0,0.00015973,2]
[394977914,1764247839557,-610.74491434,0.00015973,2]
[394977915,1764247839567,-500.0,0.00015973,2]
[394977916,1764247839576,-232.83230401,0.00015973,2]
[394977917,1764247839585,-500.0,0.00015973,2]
[394977918,1764247839594,-498.38723624,0.00015973,2]
[394977919,1764247839603,-380.17831963,0.0001599,2]
[394977920,1764247839613,-101194.16787038,0.00016,4]
[394977921,1764247839622,-118255.20908686,0.00016,4]
[394977922,1764247839632,-151.0,0.00016,2]
[394977923,1764247839641,-151.0,0.00016,2]
[394977924,1764247839650,-168.0,0.00016042,2]
[394977925,1764247839659,-150.0,0.00016043,2]
[394977926,1764247839668,-250.0,0.00016064,2]
[394977927,1764247839677,-150.0,0.00016064,2]
[394977928,1764247839686,-166.66,0.00016065,2]
[394977929,1764247839698,-500.0,0.00016094,2]
[394977930,1764247839707,-512.0,0.00016094,2]
[394977931,1764247839717,-250.0,0.00016094,2]
[394977932,1764247839726,-240.95,0.00016106,2]
[394977933,1764247839735,-418.70614657,0.00016108,2]
[394977934,1764247839744,-4680.51416558,0.00016109,2]
[394977935,1764247839753,-937.89,0.00016116,2]
[394977936,1764247839762,-1307.3,0.00016116,2]
[394977937,1764247839770,-3762.53,0.00016116,2]
[394977938,1764247839779,-4614.03,0.00016116,2]
[394977939,1764247839788,-299.99,0.00016116,4]
[394977940,1764247839797,-14145.56,0.00016116,2]
[394977941,1764247839806,-4636.8,0.00016116,2]
[394977942,1764247839815,-150.99,0.00016116,2]
[394977943,1764247839823,-1000.0,0.00016123,2]
[394977944,1764247839832,-1000.0,0.00016123,2]
[394977945,1764247839842,-420.0,0.00016129,2]
[394977946,1764247839851,-201.07851,0.0001613,2]
[394977947,1764247839860,-150.0,0.00016137,2]
[394977948,1764247839869,-150.0,0.00016137,2]
[394977949,1764247839878,-20631.03718268,0.00016142,2]
[394977950,1764247839887,-1874.31316896,0.00016142,2]
[394977951,1764247839896,-1230.22,0.00016196,2]
[394977952,1764247839905,-25000.02254663,0.000162,5]
[394977953,1764247839914,-150.0,0.00016201,2]
[394977954,1764247839924,-1680.0,0.00016207,2]
[394977955,1764247839933,-300.0,0.00016208,2]
[394977956,1764247839942,-195.0,0.00016208,2]
[394977957,1764247839951,-300.0,0.00016208,2]
[394977958,1764247839961,-250.0,0.00016208,2]
[394977959,1764247839970,-195.0,0.00016208,2]
[394977960,1764247839979,-500.0,0.00016231,2]
[394977961,1764247839989,-512.0,0.00016231,2]
[394977962,1764247839998,-150.0,0.00016231,2]
[394977963,1764247840007,-431.13453225,0.00016233,2]
[394977964,1764247840017,-158.49727208,0.00016268,2]
[394977965,1764247840026,-254.24,0.00016294,2]
[394977966,1764247840035,-150.0,0.00016307,2]
[394977967,1764247840044,-150.0,0.00016307,2]
[394977968,1764247840053,-150.0,0.00016307,2]
[394977969,1764247840063,-250.0,0.00016318,2]
[394977970,1764247840075,-543.89900422,0.00016352,2]
[394977971,1764247840084,-4454.6233001,0.0001636,2]
[394977972,1764247840093,-500.0,0.00016368,2]
[394977973,1764247840102,-512.0,0.00016368,2]
[394977974,1764247840111,-158.56724605,0.00016373,2]
[394977975,1764247840119,-201.07851,0.0001638,2]
[394977976,1764247840128,-300.0,0.000164,2]
[394977977,1764247840137,-300.0,0.000164,2]
[394977978,1764247840146,-150.0,0.0001642,2]
[394977979,1764247840155,-501.20243552,0.00016421,2]
[394977980,1764247840164,-410.80515512,0.00016421,2]
[394977982,1764247840174,-166.67,0.00016438,2]
[394977983,1764247840183,-500.0,0.00016438,2]
[394977984,1764247840192,-500.0,0.00016438,2]
[394977985,1764247840201,-167.83449946,0.00016438,2]
[394977987,1764247840210,-500.0,0.00016438,2]
[394977989,1764247840219,-500.0,0.00016438,2]
[394977991,1764247840228,-500.0,0.00016438,2]
[394977993,1764247840238,-500.0,0.00016438,2]
[394977995,1764247840247,-500.0,0.00016438,2]
[394977997,1764247840256,-500.0,0.00016438,2]
[394977999,1764247840265,-500.0,0.00016438,2]
[394978002,1764247840275,-500.0,0.00016438,2]
[394978003,1764247840284,-500.0,0.00016438,2]
[394978005,1764247840293,-500.0,0.00016438,2]
[394978007,1764247840302,-500.0,0.00016438,2]
[394978008,1764247840310,-500.0,0.00016438,2]
[394978009,1764247840319,-500.0,0.00016438,2]
[394978011,1764247840329,-12400.42783636,0.00016438,2]
[394978026,1764247840641,-14767.51216364,0.00016438,2]
[394978027,1764247840651,-151.0,0.00016438,2]
[394978028,1764247840660,-151.0,0.00016438,2]
[394978029,1764247840669,-7418.35,0.00016438,2]
[394978030,1764247840679,-158.803985,0.00016438,2]
[394978031,1764247840692,-800.0,0.00016438,2]
[394978032,1764247840700,-800.0,0.00016438,2]
[394978033,1764247840710,-163.86,0.0001644,2]
[394978034,1764247840719,-1000.0,0.00016468,2]
[394978035,1764247840727,-1071.55373137,0.0001647,2]
[394978036,1764247840738,-158.66626863,0.0001647,2]
[394978037,1764247840747,-150.0,0.00016477,2]
[394978038,1764247840758,-287.63173137,0.00016493,2]
[394978039,1764247840769,-1038.22278147,0.00016493,2]
[394978041,1764247841185,-1.7e-07,0.00016493,2]
[394978042,1764247841196,-647.02556153,0.00016493,2]
[394978043,1764247841207,-3403.71168892,0.00016493,2]
[394978051,1764247843922,-180.39142398,0.00016438,2]
[394978052,1764247843932,-15254.44541922,0.00016493,2]
[394978053,1764247843941,-1874.31316896,0.00016493,2]
[394978054,1764247843950,-500.0,0.00016505,2]
[394978055,1764247843959,-512.0,0.00016505,2]
[394978056,1764247843969,-482.44252832,0.00016521,2]
[394978057,1764247843978,-91.47450391,0.00016521,2]
[394978058,1764247843989,-409.58907893,0.00016521,2]
[394978059,1764247843999,-437.22818306,0.00016521,2]
[394978060,1764247844009,-1000.0,0.00016521,2]
[394978061,1764247844018,-166.66,0.00016547,2]
[394978062,1764247844027,-150.0,0.00016562,2]
[394978063,1764247844037,-431.13453225,0.00016567,2]
[394978064,1764247844046,-500.0,0.00016575,2]
[394978065,1764247844056,-150.0,0.00016609,2]
[394978066,1764247844065,-1600.0,0.00016627,2]
[394978067,1764247844074,-201.07851,0.0001663,2]
[394978068,1764247844084,-500.0,0.00016642,2]
[394978069,1764247844092,-512.0,0.00016642,2]
[394978070,1764247844102,-150.0,0.00016647,2]
[394978071,1764247844110,-150.0,0.00016647,2]
[394978072,1764247844120,-150.0,0.00016647,2]
[394978073,1764247844129,-1500.0,0.00016671,2]
[394978074,1764247844138,-558.98343407,0.00016712,2]
[394978075,1764247844147,-222.61,0.00016712,2]
[394978076,1764247844157,-1230.22,0.00016744,2]
[394978077,1764247844166,-500.0,0.00016779,2]
[394978078,1764247844176,-512.0,0.00016779,2]
[394978079,1764247844185,-150.0,0.00016798,2]
[394978080,1764247844194,-150.0,0.00016816,2]
[394978081,1764247844204,-1916.45037169,0.00016845,2]
[394978082,1764247844216,-6107.54014774,0.00016845,2]
[394978090,1764247846327,-12607.04666325,0.00016845,2]
[394978091,1764247846337,-1874.31316896,0.00016845,2]
[394978092,1764247846347,-300.0,0.00016879,2]
[394978093,1764247846356,-300.0,0.00016879,2]
[394978094,1764247846366,-231.9921206,0.00016879,2]
[394978095,1764247846378,-826.11518291,0.0001688,2]
[394978096,1764247846390,-843.8983374,0.0001688,2]
[394978097,1764247846440,-8195.43995958,0.0001688,2]
[394978102,1764247861520,300.0,0.00014734,2]
[394978103,1764247862333,150.0,0.00014734,2]
[394978104,1764247893136,1117.362,0.0001444,2]
[394978105,1764247893188,167.976,0.0001444,2]
[394978106,1764247896376,159.04468026,0.00014635,2]
[394978107,1764247903109,455.91084205,0.00014734,2]
[394978108,1764247903149,161.17347557,0.00014734,2]
[394978109,1764247903210,6178.759155,0.00014635,2]
[394978110,1764247903233,8304.59594057,0.00014635,2]
[394978111,1764247904063,500.0,0.00014734,2]
[394978112,1764247904098,241.06889963,0.00014734,2]
[394978113,1764247904134,197.51413094,0.00014734,2]
[394978114,1764247904178,500.0,0.00014734,2]
[394978115,1764247904221,256.83102886,0.00014734,2]
[394978116,1764247904249,243.16897114,0.00014734,2]
[394978117,1764247904338,500.0,0.00014734,2]
[394978118,1764247904404,275.9213801,0.00014734,2]
[394978119,1764247909849,189.7136269,0.00014734,2]
[394978120,1764247921659,300.0,0.00014734,2]
[394978121,1764247936368,157.59333156,0.00014734,2]
[394978122,1764247954278,168.88231218,0.00014635,2]
[394978123,1764247958110,697.38796868,0.00014635,2]
[394978124,1764247968728,235.1888,0.00014635,2]
[394978125,1764247969447,1011.0,0.00014734,2]
[394978126,1764247981284,300.0,0.00014734,2]
[394978133,1764247983506,221.49377174,0.00014635,2]
[394978162,1764247993235,5699.6598377,0.00014635,2]
[394978163,1764247993259,10000.01,0.00014635,2]
[394978164,1764247993281,10000.01,0.00014635,2]
[394978165,1764247993303,7685.2414623,0.00014635,2]
[394978182,1764248032503,159.04468024,0.00014635,2]
[394978183,1764248041386,300.0,0.00014734,2]
[394978184,1764248042579,150.0,0.00014734,2]
[394978186,1764248091701,-5429.2,0.00014735,2]
[394978187,1764248101199,300.0,0.00014734,2]
[394978188,1764248101287,300.0,0.00014734,2]
[394978189,1764248101327,1105.72385746,0.00014734,2]
[394978190,1764248101351,94.27614254,0.00014734,2]
[394978191,1764248101555,300.0,0.00014734,2]
[394978192,1764248102023,867.57891302,0.00014635,2]
[394978193,1764248108622,1321.42963294,0.00014635,2]
[394978194,1764248110417,999.0,0.00014496,3]
[394978195,1764248159902,159.04468024,0.00014635,2]
[394978196,1764248163218,9840.96531976,0.00014635,2]
[394978197,1764248163242,1460.92928024,0.00014635,2]
[394978198,1764248178713,488.79,0.00014,2]
[394978199,1764248209613,168.88231217,0.00014635,2]
[394978200,1764248222279,150.0,0.00014734,2]
[394978201,1764248225737,300.0,0.00014735,2]
[394978202,1764248228259,151.0,0.00014735,2]
[394978204,1764248228903,151.0,0.00014735,2]
[394978205,1764248229504,151.0,0.00014735,2]
[394978206,1764248230133,151.0,0.00014735,2]
[394978207,1764248230761,151.0,0.00014735,2]
[394978208,1764248231021,151.0,0.00014735,2]
[394978209,1764248231352,151.0,0.00014735,2]
[394978210,1764248231958,151.0,0.00014735,2]
[394978211,1764248232584,151.0,0.00014735,2]
[394978212,1764248233215,151.0,0.00014735,2]
[394978213,1764248234157,151.0,0.00014735,2]
[394978214,1764248234868,151.0,0.00014735,2]
[394978215,1764248235448,151.0,0.00014735,2]
[394978216,1764248235816,500.0,0.00014735,2]
[394978217,1764248236058,151.0,0.00014735,2]
[394978218,1764248236662,203.69598117,0.00014735,2]
[394978220,1764248236897,500.0,0.00014735,2]
[394978221,1764248237521,500.0,0.00014735,2]
[394978222,1764248238125,500.0,0.00014735,2]
[394978223,1764248238758,500.0,0.00014735,2]
[394978225,1764248239394,500.0,0.00014735,2]
[394978226,1764248240030,500.0,0.00014735,2]
[394978227,1764248240659,500.0,0.00014735,2]
[394978228,1764248241277,500.0,0.00014735,2]
[394978229,1764248242077,500.0,0.00014734,2]
[394978230,1764248244340,113.71242642,0.00014735,2]
[394978231,1764248244368,386.28757358,0.00014735,2]
[394978234,1764248269344,1200.0,0.00014734,2]
[394978235,1764248271647,166.66,0.00014316,2]
[394978236,1764248271858,166.66,0.00014618,2]
[394978238,1764248281300,300.0,0.00014734,2]
[394978240,1764248289524,7780.40242642,0.00014635,2]
[394978241,1764248289549,5860.57039502,0.00014635,2]
[394978245,1764248323135,300.0,0.00014735,2]
[394978247,1764248341318,300.0,0.00014734,2]
[394978249,1764248351091,338.4332223,0.00014735,2]
[394978254,1764248401400,300.0,0.00014734,2]
[394978255,1764248401776,1200.0,0.00014734,2]
[394978256,1764248402373,150.0,0.00014734,2]
[394978257,1764248424012,500.0,0.00014734,2]
[394978258,1764248424066,599.97142995,0.00014734,2]
[394978259,1764248427647,180.77945581,0.00014734,2]
[394978260,1764248435717,270.25549692,0.00014734,2]
[394978261,1764248435742,229.74450308,0.00014734,2]
[394978262,1764248435778,318.34906937,0.00014734,2]
[394978263,1764248452004,601.19254529,0.00014734,2]
[394978264,1764248459663,500.0,0.00014734,2]
[394978265,1764248461848,300.0,0.00014734,2]
[394978266,1764248483794,8050.72388226,0.00014734,2]
[394978267,1764248483822,8892.3810235,0.00014734,2]
[394978268,1764248484199,601.19254529,0.00014734,2]
[394978269,1764248493106,506.43643121,0.0001444,2]
[394978270,1764248493130,387.45256879,0.0001444,2]
[394978271,1764248493206,167.97647726,0.0001444,2]
[394978272,1764248508818,500.0,0.00014734,2]
[394978273,1764248516566,601.19254529,0.00014734,2]
[394978274,1764248518619,500.0,0.00014734,2]
[394978275,1764248523841,500.0,0.00014734,2]
[394978276,1764248542457,290.95562171,0.00014735,2]
[394978277,1764248551493,601.19254529,0.00014734,2]
[394978278,1764248580014,150.0,0.00014734,2]
[394978279,1764248582248,150.0,0.00014734,2]
[394978280,1764248585761,277.4212225,0.00014734,2]
[394978281,1764248611937,150.0,0.00014734,2]
[394978282,1764248618900,1326.25696923,0.00014635,2]
[394978283,1764248641398,300.0,0.00014734,2]
[394978284,1764248644319,183.72477142,0.00014734,2]
[394978285,1764248660304,500.0,0.00014734,2]
[394978286,1764248660455,500.274,0.00014734,2]
[394978287,1764248675826,2913.56327851,0.00014635,2]
[394978288,1764248675852,9363.31226084,0.00014635,2]
[394978289,1764248676737,181.72268078,0.00014734,2]
[394978290,1764248689189,4527.0,0.000143,5]
[394978291,1764248700378,454.97505838,0.00014734,2]
[394978292,1764248700407,120.09464844,0.00014734,2]
[394978293,1764248701404,1200.0,0.00014734,2]
[394978294,1764248701564,300.0,0.00014734,2]
[394978295,1764248709177,610.7352841,0.00014734,2]
[394978296,1764248740477,610.7352841,0.00014734,2]
[394978297,1764248761547,300.0,0.00014734,2]
[394978298,1764248762167,150.0,0.00014734,2]
[394978299,1764248772680,610.7352841,0.00014734,2]
[394978303,1764248804641,610.7352841,0.00014734,2]
[394978304,1764248818968,757.8,0.00013699,2]
[394978305,1764248836925,610.7352841,0.00014734,2]
[394978308,1764248866270,4118.43893106,0.00014635,2]
[394978309,1764248866298,10000.01,0.00014635,2]
[394978310,1764248866328,10000.01,0.00014635,2]
[394978311,1764248866354,10000.01,0.00014635,2]
[394978312,1764248866379,10000.01,0.00014635,2]
[394978313,1764248866406,10000.01,0.00014635,2]
[394978314,1764248866435,10000.01,0.00014635,2]
[394978315,1764248866463,10000.01,0.00014635,2]
[394978316,1764248866488,10000.01,0.00014635,2]
[394978317,1764248866521,668959.12646894,0.00014635,2]
[394978318,1764248868415,610.7352841,0.00014734,2]
[394978319,1764248879440,6362.07,0.00014688,2]
[394978321,1764248899960,610.7352841,0.00014734,2]
[394978323,1764248922486,547.75274217,0.00014734,2]
[394978330,1764248989240,500.0,0.00014673,2]
[394978335,1764249025958,868.59,0.00013699,2]
[394978338,1764249032298,-864.08449454,0.00014735,2]
[394978339,1764249032310,-135.91550546,0.00014735,2]
[394978340,1764249032319,-600.0,0.00014735,2]
[394978341,1764249032329,-250.0,0.00014735,2]
[394978342,1764249032339,-151.0,0.00014735,2]
[394978343,1764249032348,-250.0,0.00014739,2]
[394978344,1764249032358,-254.58448654,0.00014833,2]
[394978345,1764249032370,-418.24853192,0.00014833,2]
[394978346,1764249032381,-527.16698154,0.00014833,2]
[394978347,1764249032391,-500.0,0.00014834,2]
[394978348,1764249032401,-500.0,0.00014834,2]
[394978349,1764249032411,-344.24380882,0.00014834,2]
[394978350,1764249032421,-1000.0,0.00014841,2]
[394978351,1764249032431,-150.0,0.00014841,2]
[394978352,1764249032440,-2751.0,0.00014841,2]
[394978353,1764249032451,-280.1,0.00014898,2]
[394978354,1764249032460,-166.66,0.00014919,2]
[394978355,1764249032470,-218.0,0.0001493,2]
[394978356,1764249032480,-150.0,0.00014997,2]